bitfinex-derivatives/quotes_ETHF0:USTF0_20250104
["timestamp","ask_amount","ask_price","bid_price","bid_amount"]
[1736028313159,0.71263,3659.0,3658.9,11.01215877]
[1736028314258,0.71263,3659.0,3658.8,0.27335]
[1736028314855,0.71263,3659.0,3658.7,6.4425838]
[1736028315061,0.71263,3659.0,3658.9,0.27334]
[1736028315262,0.71263,3659.0,3658.7,6.4425838]
[1736028315263,0.71263,3659.0,3658.6,6.4425838]
[1736028315559,0.71263,3659.0,3658.9,0.27334]
[1736028316363,0.4393,3659.0,3658.9,0.27334]
[1736028317465,0.4393,3659.0,3658.9,11.27681795]
[1736028319066,0.4393,3659.0,3658.9,4.83423415]
[1736028320270,0.4393,3659.0,3658.9,0.27334]
[1736028321768,0.4393,3659.0,3658.7,6.4425838]
[1736028321972,0.27335,3658.8,3658.7,6.7159338]
[1736028322671,0.27335,3658.9,3658.8,0.27335]
[1736028324575,0.71264,3659.0,3658.9,0.27334]
[1736028327473,0.4393,3659.0,3658.5,6.4425838]
[1736028327680,0.27335,3658.9,3658.8,0.27335]
[1736028329179,0.4393,3659.0,3658.4,8.6282664]
[1736028329381,0.71264,3659.0,3658.9,0.27334]
[1736028330485,0.4393,3659.0,3658.9,0.27334]
[1736028332087,0.4458,3659.2,3659.1,0.27333]
[1736028332278,3.2033037,3660.1,3659.1,0.98599598]
[1736028332279,0.838,3659.6,3659.1,0.98599598]
[1736028332581,0.838,3659.6,3659.5,0.2733]
[1736028332876,4.46707598,3659.8,3659.5,0.2733]
[1736028332877,3.2033037,3660.1,3660.0,0.27326]
[1736028333471,4.4764,3660.4,3660.0,0.98599598]
[1736028333681,0.98599598,3660.3,3660.2,0.27324]
[1736028334079,1.25923598,3660.3,3660.2,0.27324]
[1736028334284,0.27324,3660.3,3660.2,0.27324]
[1736028335182,4.4764,3660.4,3660.2,0.27324]
[1736028335381,4.4764,3660.4,3659.6,3.29688704]
[1736028335582,4.4764,3660.4,3659.9,2.18425704]
[1736028335780,4.4764,3660.4,3660.3,0.27324]
[1736028338180,4.74963,3660.4,3660.3,0.27324]
[1736028338382,4.74963,3660.4,3659.6,9.05624084]
[1736028338591,4.74963,3660.4,3660.3,0.27324]
[1736028339294,4.4764,3660.4,3660.3,0.27324]
[1736028341587,0.27324,3660.3,3660.2,0.27324]
[1736028342085,4.74963,3660.4,3660.3,0.27324]
[1736028342286,0.27324,3660.3,3659.6,3.29688704]
[1736028342486,0.27324,3660.3,3660.2,0.27325]
[1736028343593,4.4764,3660.4,3659.6,3.29688704]
[1736028343789,0.27324,3660.3,3660.2,0.27324]
[1736028344089,4.4764,3660.4,3660.3,0.27324]
[1736028346801,1.2686,3660.4,3660.3,0.27324]
[1736028348490,1.54183,3660.4,3660.3,0.27324]
[1736028348686,1.2686,3660.4,3660.3,0.27324]
[1736028352895,1.54183,3660.4,3660.3,0.27324]
[1736028358899,1.2686,3660.4,3659.7,10.3335938]
[1736028359194,0.27324,3660.3,3660.2,0.27324]
[1736028359400,1.54184,3660.4,3660.3,0.27324]
[1736028360302,2.52761483,3660.4,3660.3,0.27324]
[1736028361209,2.25437483,3660.4,3659.9,0.98577483]
[1736028361398,0.98577483,3660.1,3660.0,0.27326]
[1736028363300,0.98577483,3660.1,3659.8,4.28222793]
[1736028363503,1.25904483,3659.9,3659.8,4.55549793]
[1736028364096,1.25904483,3659.9,3659.8,4.28222793]
[1736028365905,1.25904483,3659.9,3659.3,4.19357483]
[1736028365906,0.27327,3659.8,3659.7,0.27328]
[1736028366103,1.58197,3659.8,3659.7,0.27328]
[1736028366305,1.3087,3659.8,3659.3,7.49002793]
[1736028366504,1.58198,3659.8,3659.7,0.27328]
[1736028368217,1.3087,3659.8,3659.3,7.49002793]
[1736028368410,0.27329,3659.7,3659.6,0.27329]
[1736028369110,0.27328,3659.7,3659.6,0.27329]
[1736028375118,1.58198,3659.8,3659.7,0.27328]
[1736028376313,1.3087,3659.8,3659.7,0.27328]
[1736028377310,1.3087,3659.8,3659.7,4.55550793]
[1736028378718,1.58197,3659.8,3659.7,4.55550793]
[1736028379119,1.58197,3659.8,3659.7,4.28222793]
[1736028379715,1.58197,3659.8,3659.7,0.38172793]
[1736028379919,0.27328,3659.7,3659.6,6.4425838]
[1736028380107,2.45831428,3659.7,3659.6,5.0995838]
[1736028380313,7.45831428,3659.7,3659.6,3.0850838]
[1736028381019,7.45831428,3659.7,3659.1,10.72508471]
[1736028381020,0.2733,3659.4,3659.3,3.0850838]
[1736028381220,4.5521,3659.4,3659.3,3.0850838]
[1736028381421,6.73713428,3659.4,3659.3,3.0850838]
[1736028382320,6.46383428,3659.4,3658.9,10.72508471]
[1736028382620,0.27335,3658.8,3658.7,0.4165]
[1736028382917,6.46383428,3659.4,3658.8,0.27335]
[1736028382918,0.27335,3658.9,3658.8,0.27335]
[1736028383424,0.27335,3658.8,3658.7,0.68985]
[1736028385515,0.27335,3658.8,3658.7,0.4165]
[1736028388623,0.27336,3658.7,3658.6,0.4382]
[1736028388928,0.27339,3658.3,3658.2,0.4181]
[1736028389118,0.27339,3658.3,3658.2,0.8279]
[1736028402335,1.26030881,3658.3,3658.2,0.8279]
[1736028414250,1.26030881,3658.3,3658.2,0.4098]
[1736028414752,1.66890881,3658.3,3658.2,0.4098]
[1736028415056,1.66890881,3658.3,3657.9,3.2078]
[1736028415057,0.27342,3657.9,3657.8,0.4358]
[1736028415248,1.26033881,3657.9,3657.8,0.4358]
[1736028417953,0.27342,3657.8,3657.7,0.4084]
[1736028418153,3.48122,3657.8,3657.7,0.4084]
[1736028418452,0.27347,3657.2,3657.1,0.4381]
[1736028418647,1.26038881,3657.2,3657.1,0.4381]
[1736028420352,0.27347,3657.2,3657.1,0.4381]
[1736028425860,0.27347,3657.2,3657.1,0.71158]
[1736028426158,0.27347,3657.2,3657.1,0.4381]
[1736028428356,0.27347,3657.2,3657.1,0.71158]
[1736028432365,0.27347,3657.2,3657.1,0.4381]
[1736028435163,0.27348,3657.1,3657.0,0.8551]
[1736028435756,0.27351,3656.6,3656.5,8.59011173]
[1736028435962,0.27351,3656.6,3656.5,9.02101173]
[1736028437360,0.27351,3656.6,3656.5,9.43721173]
[1736028437760,0.27351,3656.6,3656.5,0.8471]
[1736028438158,0.4069,3657.0,3656.5,0.8471]
[1736028438365,0.2735,3656.9,3656.8,0.27349]
[1736028438660,3.2078,3657.1,3657.0,0.27348]
[1736028439052,2.5358,3657.1,3657.0,0.27348]
[1736028439258,2.13858155,3657.4,3657.3,0.27346]
[1736028439568,2.41203155,3657.4,3657.3,0.27346]
[1736028439770,2.13858155,3657.4,3657.1,0.431]
[1736028440062,0.27347,3657.2,3657.1,0.431]
[1736028440658,2.18803346,3657.4,3656.7,8.59011173]
[1736028440961,0.27349,3656.9,3656.8,0.431]
[1736028445262,2.13858155,3657.4,3656.8,0.431]
[1736028445462,0.27346,3657.3,3657.2,3.48127]
[1736028445659,0.27346,3657.3,3657.2,3.2078]
[1736028446367,2.13858155,3657.4,3657.0,0.27348]
[1736028446567,0.27348,3657.1,3657.0,0.27348]
[1736028446966,2.13858155,3657.4,3656.8,3.6388]
[1736028447168,0.27349,3657.0,3656.9,0.27349]
[1736028447362,0.27348,3657.1,3656.9,0.27349]
[1736028448166,0.27345,3657.4,3656.9,0.27349]
[1736028448366,0.27348,3657.1,3656.9,0.27349]
[1736028448769,0.27349,3656.9,3656.8,0.431]
[1736028448966,0.27352,3656.5,3656.4,6.43719036]
[1736028451266,0.27353,3656.4,3656.3,0.4357]
[1736028455874,0.27176008,3656.4,3656.3,0.4357]
[1736028457569,2.18803346,3656.5,3655.9,6.43719036]
[1736028457773,5.66939346,3656.0,3655.9,5.73384036]
[1736028458071,5.66939346,3656.0,3655.6,7.91791173]
[1736028458072,6.46683346,3656.0,3655.6,7.91791173]
[1736028458269,2.46161346,3655.7,3655.6,5.97415173]
[1736028458674,2.46161346,3655.7,3655.4,6.43873077]
[1736028458675,0.2736,3655.5,3655.4,6.43873077]
[1736028459172,5.2736,3655.5,3655.4,6.43873077]
[1736028459371,0.2736,3655.5,3655.4,6.43873077]
[1736028460178,1.3446,3655.5,3655.4,6.43873077]
[1736028460562,1.3446,3655.5,3655.3,1.3055]
[1736028460563,0.2736,3655.4,3655.3,1.3055]
[1736028469783,2.46163346,3655.4,3655.3,1.3055]
[1736028471584,0.2736,3655.4,3655.3,1.3055]
[1736028471882,7.4831037,3656.4,3655.6,0.27359]
[1736028472080,0.27355,3656.1,3655.7,3.2078]
[1736028472280,0.27357,3655.8,3655.7,3.2078]
[1736028473975,0.27354,3656.2,3655.7,3.2078]
[1736028474172,0.27357,3655.8,3655.7,3.2078]
[1736028485891,0.27357,3655.8,3655.7,3.48138]
[1736028486991,0.27357,3655.8,3655.7,3.2078]
[1736028487994,0.27358,3655.7,3655.6,3.48138]
[1736028490295,0.27353,3656.4,3656.3,0.27353]
[1736028490487,2.41210155,3656.6,3656.5,0.27352]
[1736028490685,0.27352,3656.5,3656.4,0.8171]
[1736028491300,0.27352,3656.5,3656.4,1.09063]
[1736028491491,0.27352,3656.5,3656.4,0.8171]
[1736028498095,0.27356,3656.0,3655.8,3.6405]
[1736028498300,0.27356,3656.0,3655.9,0.69506]
[1736028502903,5.34638155,3656.6,3655.9,0.4215]
[1736028503104,2.13858155,3656.6,3655.9,0.4215]
[1736028503603,0.27354,3656.3,3656.2,0.27354]
[1736028507609,0.2917,3656.6,3656.1,0.27355]
[1736028507610,0.27355,3656.2,3656.1,0.27355]
[1736028510505,0.27355,3656.1,3656.0,1.68080325]
[1736028511005,0.27355,3656.2,3656.1,0.27355]
[1736028513311,0.27354,3656.3,3656.2,0.27354]
[1736028518711,0.27354,3656.3,3656.2,4.56606535]
[1736028520119,2.41211155,3656.4,3656.3,0.27354]
[1736028520314,2.41211155,3656.4,3656.3,0.70334]
[1736028522013,2.13858155,3656.4,3656.3,0.70334]
[1736028522219,2.13858155,3656.4,3656.3,3.91114]
[1736028523124,2.13858155,3656.5,3656.4,0.27353]
[1736028523511,2.13858155,3656.5,3656.4,0.71533]
[1736028523713,2.41210155,3656.5,3656.4,0.71533]
[1736028523922,2.13858155,3656.5,3656.4,0.71533]
[1736028524519,2.13858155,3656.5,3656.4,5.00785535]
[1736028525618,2.41210155,3656.5,3656.4,5.00785535]
[1736028525825,2.41210155,3656.5,3656.4,0.71533]
[1736028526020,2.41210155,3656.5,3656.3,4.72232535]
[1736028526021,2.13858155,3656.5,3656.3,4.72232535]
[1736028526225,1.26138325,3656.4,3656.3,4.29252535]
[1736028527225,1.39829979,3656.4,3656.0,4.71192535]
[1736028527424,1.26140325,3656.1,3656.0,4.71192535]
[1736028528726,1.26140325,3656.1,3656.0,0.4194]
[1736028532929,0.27356,3656.0,3655.9,4.29252535]
[1736028533125,1.63636,3656.0,3655.9,4.29252535]
[1736028535234,1.63636,3656.0,3655.3,1.2431]
[1736028535235,0.2736,3655.4,3655.3,1.2431]
[1736028536733,1.26145325,3655.4,3655.3,1.2431]
[1736028537534,0.2736,3655.5,3655.3,1.2431]
[1736028537740,0.2736,3655.5,3655.4,0.2736]
[1736028538644,3.11989727,3655.6,3655.3,1.2431]
[1736028538943,0.2736,3655.4,3655.3,1.51671]
[1736028539842,0.2736,3655.4,3655.3,1.2431]
[1736028540044,1.26145325,3655.4,3655.3,1.2431]
[1736028540543,0.2736,3655.4,3655.3,1.2431]
[1736028541247,0.2736,3655.4,3655.3,1.51671]
[1736028541440,0.2736,3655.4,3655.3,1.2431]
[1736028541946,0.2736,3655.4,3655.3,1.51671]
[1736028546251,0.2736,3655.5,3655.4,0.2736]
[1736028546540,0.2736,3655.5,3655.4,1.26145325]
[1736028546740,0.2736,3655.5,3655.4,0.98785325]
[1736028546946,0.2736,3655.5,3655.4,1.26145325]
[1736028548048,2.13204402,3655.9,3655.4,0.98785325]
[1736028548243,2.13204402,3655.9,3655.8,0.27357]
[1736028548448,0.27357,3655.8,3655.7,1.26143325]
[1736028549243,2.40561402,3655.9,3655.8,0.27357]
[1736028549852,0.27357,3655.9,3655.8,0.27357]
[1736028551245,0.98785325,3656.1,3655.7,0.98785325]
[1736028551440,0.27356,3656.0,3655.9,0.27356]
[1736028551650,0.27356,3656.0,3655.9,1.26141325]
[1736028551945,0.27355,3656.2,3656.1,0.27355]
[1736028552147,0.27355,3656.2,3656.1,1.26140325]
[1736028552847,2.13204402,3656.5,3656.1,0.98785325]
[1736028553046,2.13204402,3656.5,3656.4,1.26138325]
[1736028553249,2.40556402,3656.5,3656.4,1.26138325]
[1736028553844,2.13204402,3656.8,3656.4,0.98785325]
[1736028554041,2.40554402,3656.8,3656.7,0.27351]
[1736028554246,2.40554402,3656.8,3656.6,0.27351]
[1736028554247,0.27351,3656.7,3656.6,0.27351]
[1736028554448,2.40554402,3656.8,3656.7,0.27351]
[1736028555048,0.2735,3656.8,3656.7,0.27351]
[1736028555245,0.2735,3656.8,3656.7,0.2735]
[1736028555539,0.27351,3656.7,3656.6,0.27351]
[1736028555744,0.27348,3657.0,3656.7,0.2735]
[1736028555944,0.2735,3656.8,3656.7,0.2735]
[1736028556144,2.13204402,3657.1,3656.4,3.2078]
[1736028556145,0.27352,3656.5,3656.4,3.2078]
[1736028557343,0.27353,3656.4,3656.3,4.29252535]
[1736028558750,0.27353,3656.5,3656.3,4.29252535]
[1736028558950,0.27353,3656.5,3656.4,0.27353]
[1736028559153,5.33984402,3656.8,3656.1,2.18840608]
[1736028559350,5.61334402,3656.8,3656.7,0.27351]
[1736028560052,5.61334402,3656.8,3656.1,2.18840608]
[1736028560255,0.27351,3656.7,3656.5,0.27352]
[1736028562051,0.27351,3656.7,3656.6,0.42]
[1736028565252,0.27351,3656.7,3656.6,0.69351]
[1736028566059,0.27351,3656.7,3656.6,0.42]
[1736028566361,0.2735,3656.8,3656.7,0.2735]
[1736028566559,0.27351,3656.7,3656.6,0.69351]
[1736028566950,0.27351,3656.7,3656.6,0.42]
[1736028569451,0.27351,3656.7,3656.6,0.69351]
[1736028571359,0.27351,3656.7,3656.6,0.42]
[1736028571757,0.27351,3656.7,3656.6,0.69351]
[1736028572461,0.27351,3656.7,3656.6,0.42]
[1736028572763,0.27351,3656.7,3656.6,0.69351]
[1736028575655,0.27351,3656.7,3656.6,0.42]
[1736028576258,1.26120109,3656.7,3656.6,0.42]
[1736028579465,0.98769109,3656.7,3656.4,3.2078]
[1736028579763,3.2078,3656.9,3656.4,3.2078]
[1736028579764,1.26121109,3656.5,3656.4,3.2078]
[1736028581864,1.97538218,3656.5,3655.8,4.29252535]
[1736028582059,1.26126109,3656.0,3655.9,1.2937]
[1736028584273,1.26126109,3656.0,3655.9,1.56727]
[1736028585369,1.26126109,3656.0,3655.9,1.2937]
[1736028585773,1.26126109,3656.0,3655.9,1.56727]
[1736028586175,1.26126109,3656.0,3655.9,1.2937]
[1736028587568,1.26126109,3656.0,3655.9,1.56727]
[1736028589274,1.26126109,3656.0,3655.9,1.2937]
[1736028589872,1.26126109,3656.0,3655.9,1.56727]
[1736028590073,0.27357,3656.0,3655.9,1.56727]
[1736028595679,0.27357,3656.0,3655.9,5.85979535]
[1736028595879,1.26126109,3656.0,3655.9,4.29252535]
[1736028597383,0.2736,3655.5,3655.4,0.446]
[1736028597583,1.26129109,3655.5,3655.4,0.446]
[1736028627110,0.2736,3655.5,3655.4,0.446]
[1736028627308,0.2736,3655.5,3655.4,0.7196]
[1736028628008,1.26129109,3655.5,3655.4,4.73852535]
[1736028628207,1.26129109,3655.5,3655.4,5.01212535]
[1736028628710,1.26129109,3655.5,3655.4,4.73852535]
[1736028630705,1.26129109,3655.5,3655.4,5.01212535]
[1736028631416,1.26129109,3655.5,3655.4,4.73852535]
[1736028631813,1.26129109,3655.5,3655.4,5.01212535]
[1736028632008,1.26129109,3655.5,3655.4,4.73852535]
[1736028632604,1.26129109,3655.5,3655.4,5.01212535]
[1736028633615,1.26129109,3655.5,3655.4,4.75334977]
[1736028634108,1.26129109,3655.5,3655.4,4.47974977]
[1736028636821,3.3951079,3655.5,3655.4,4.75334977]
[1736028637712,3.3951079,3655.5,3655.4,4.47974977]
[1736028638129,1.26129109,3655.5,3655.4,4.47974977]
[1736028639420,1.26129109,3655.5,3655.4,4.75334977]
[1736028640815,1.26129109,3655.5,3655.4,4.47974977]
[1736028641426,3.3951079,3655.5,3655.4,10.93259523]
[1736028641841,2.13381681,3655.5,3655.4,11.20619523]
[1736028642920,2.13381681,3655.5,3655.4,12.83116897]
[1736028643823,2.40741681,3655.5,3655.4,12.83116897]
[1736028644418,0.2736,3655.5,3655.4,12.83116897]
[1736028645722,2.40741681,3655.5,3655.4,13.37039633]
[1736028646322,2.40741681,3655.5,3655.4,13.09679633]
[1736028646523,3.3951079,3655.5,3655.4,13.09679633]
[1736028647227,3.3951079,3655.5,3655.4,4.47974977]
[1736028647228,1.26129109,3655.5,3655.4,4.47974977]
[1736028649329,0.2736,3655.5,3655.4,4.47974977]
[1736028649716,3.47166603,3655.5,3655.4,4.47974977]
[1736028650732,0.2736,3655.5,3655.4,4.47974977]
[1736028652025,3.47166603,3655.5,3655.4,4.47974977]
[1736028658636,4.45935712,3655.5,3655.4,4.03374977]
[1736028661139,0.2736,3655.4,3655.3,5.18335793]
[1736028662438,0.68415527,3655.4,3655.3,5.18335793]
[1736028665342,0.68415527,3655.4,3655.3,0.8748]
[1736028671243,3.89055784,3655.4,3655.3,0.8748]
[1736028684642,3.48000257,3655.4,3655.3,0.8748]
[1736028688746,3.89055702,3655.4,3655.3,0.8748]
[1736028690944,4.60464811,3655.4,3655.1,4.30855793]
[1736028691147,0.27362,3655.2,3655.1,4.30855793]
[1736028691354,4.26408804,3655.6,3655.1,8.50404902]
[1736028691551,3.59178804,3655.6,3655.5,0.98769109]
[1736028692057,3.59178804,3655.6,3655.5,1.26129109]
[1736028692556,2.41233594,3655.6,3655.5,5.29624902]
[1736028692955,2.41233594,3655.6,3655.5,5.73694902]
[1736028694657,2.41233594,3655.6,3655.5,6.17894902]
[1736028695251,2.41233594,3655.6,3655.5,5.19125793]
[1736028697356,3.40002703,3655.6,3655.5,5.19125793]
[1736028701561,1.26128109,3655.6,3655.5,0.8827]
[1736028701952,1.26128109,3655.6,3655.5,1.3134]
[1736028704066,3.39924504,3655.6,3655.5,5.62195793]
[1736028705067,3.39924504,3655.6,3655.5,1.3134]
[1736028707967,3.39924504,3655.6,3655.5,5.62195793]
[1736028709367,3.39924504,3655.6,3655.5,1.3134]
[1736028715366,3.39924504,3655.6,3655.5,5.62195793]
[1736028716065,2.41155395,3655.6,3655.5,5.62195793]
[1736028716368,3.39924504,3655.6,3655.5,5.62195793]
[1736028730081,3.39924504,3655.6,3655.5,5.89555793]
[1736028730386,3.20811891,3655.7,3655.5,8.82975793]
[1736028730595,1.86351891,3655.7,3655.6,1.26128109]
[1736028731482,0.27353,3656.4,3656.3,0.27354]
[1736028732180,0.27353,3656.4,3656.3,0.68404]
[1736028732785,0.27353,3656.4,3656.3,4.75427124]
[1736028733481,0.4329,3656.7,3656.3,4.48073124]
[1736028733683,0.27351,3656.8,3656.7,0.27351]
[1736028734288,0.4257,3656.9,3656.6,0.98769109]
[1736028734587,0.4257,3656.9,3656.8,0.2735]
[1736028734790,0.69919,3656.9,3656.8,0.2735]
[1736028735586,0.69919,3656.9,3656.7,0.2735]
[1736028735890,0.98769109,3656.8,3656.7,0.2735]
[1736028736089,0.98769109,3656.8,3656.7,0.6777]
[1736028737587,0.4257,3656.9,3656.8,0.2735]
[1736028738487,0.98769109,3657.0,3656.8,0.2735]
[1736028738683,1.26117109,3657.0,3656.9,0.8514]
[1736028740288,0.27348,3657.0,3656.9,0.8514]
[1736028740495,3.2078,3657.5,3656.9,1.83909109]
[1736028740700,3.89765,3657.5,3657.4,0.98769109]
[1736028740902,4.88534109,3657.5,3657.3,0.27346]
[1736028741097,4.88534109,3657.5,3657.4,0.4208]
[1736028741298,4.61189109,3657.5,3657.4,0.69425]
[1736028741602,4.88534109,3657.5,3657.4,0.4208]
[1736028742195,4.88534109,3657.5,3657.4,0.69425]
[1736028743402,4.88534109,3657.5,3657.4,0.4208]
[1736028743594,4.61189109,3657.5,3657.4,0.4208]
[1736028744090,4.88534109,3657.5,3657.4,0.4208]
[1736028744697,4.61189109,3657.5,3657.4,0.4208]
[1736028744998,4.61189109,3657.5,3657.4,0.69425]
[1736028745398,4.88534109,3657.5,3657.4,0.69425]
[1736028745799,4.88534109,3657.5,3657.4,0.4208]
[1736028746893,1.40409109,3657.5,3657.4,0.69425]
[1736028748194,1.40409109,3657.5,3657.4,0.4208]
[1736028748399,1.67754109,3657.5,3657.4,0.4208]
[1736028754308,2.39178218,3657.5,3657.1,3.2078]
[1736028754508,1.26116109,3657.2,3657.1,3.2078]
[1736028755513,0.27348,3657.0,3656.9,0.8514]
[1736028755710,0.27348,3657.0,3656.9,1.12489]
[1736028755711,1.26117109,3657.0,3656.9,1.12489]
[1736028762712,0.98769109,3657.0,3656.9,1.12489]
[1736028762916,0.4247,3657.1,3656.9,0.8514]
[1736028763222,0.69818,3657.1,3657.0,0.27348]
[1736028763613,0.4247,3657.1,3657.0,0.27348]
[1736028764015,0.69818,3657.1,3657.0,0.27348]
[1736028766020,0.4247,3657.1,3657.0,0.27348]
[1736028766922,0.4247,3657.1,3657.0,1.26117109]
[1736028767127,3.2078,3657.6,3657.0,0.98769109]
[1736028767328,0.68705,3657.5,3657.4,0.27345]
[1736028768621,0.4136,3657.5,3657.4,0.27345]
[1736028768827,0.68705,3657.5,3657.4,0.27345]
[1736028771325,0.4136,3657.5,3657.4,0.27345]
[1736028771731,0.68705,3657.5,3657.4,0.27345]
[1736028772224,0.4034,3657.9,3657.4,0.27345]
[1736028772225,7.48580777,3658.5,3657.4,1.97538218]
[1736028772417,7.48580777,3658.5,3658.4,1.26107109]
[1736028772418,4.27800777,3658.5,3658.4,1.26107109]
[1736028774225,0.27334,3659.0,3658.4,2.1857077]
[1736028774424,1.52323,3659.1,3659.0,0.27333]
[1736028774729,1.10463,3659.1,3658.9,0.27334]
[1736028776225,1.10463,3659.1,3659.0,0.27333]
[1736028776819,0.8313,3659.1,3659.0,0.27333]
[1736028778523,0.4139,3659.1,3659.0,0.27333]
[1736028780424,0.4139,3659.1,3658.5,3.2078]
[1736028780625,0.4139,3659.1,3658.9,0.27334]
[1736028780825,0.4139,3659.1,3658.5,3.2078]
[1736028781132,0.4139,3659.1,3659.0,0.27333]
[1736028781335,0.68723,3659.1,3658.9,0.27334]
[1736028783324,0.68723,3659.1,3658.5,3.2078]
[1736028783325,0.4139,3659.1,3658.5,3.2078]
[1736028783528,0.68723,3659.1,3658.9,0.27334]
[1736028785727,1.069,3659.6,3658.9,0.27334]
[1736028785728,3.2078,3659.8,3659.0,2.1857077]
[1736028785927,3.2078,3659.8,3659.7,0.27328]
[1736028786232,0.4209,3660.0,3659.9,0.27327]
[1736028788241,0.4209,3660.0,3659.8,1.2389]
[1736028788537,0.4209,3660.0,3659.9,0.27327]
[1736028789240,0.69416,3660.0,3659.9,0.27327]
[1736028789634,0.69416,3660.0,3659.8,1.2389]
[1736028789828,0.69416,3660.0,3659.9,0.27327]
[1736028791140,0.69416,3660.0,3659.8,1.2389]
[1736028791340,0.69416,3660.0,3659.8,1.51217]
[1736028791738,0.69416,3660.0,3659.8,1.2389]
[1736028791939,0.69416,3660.0,3659.9,0.27327]
[1736028792936,0.4209,3660.0,3659.9,0.27327]
[1736028794440,0.69416,3660.0,3659.9,0.27327]
[1736028795544,0.4209,3660.0,3659.1,3.2078]
[1736028795741,0.4209,3660.0,3659.3,0.27331]
[1736028795742,0.2733,3659.5,3659.3,0.27331]
[1736028796143,0.4172,3659.4,3659.3,0.27331]
[1736028797047,0.6905,3659.4,3659.3,0.27331]
[1736028798148,0.4172,3659.4,3659.3,0.27331]
[1736028799944,0.6905,3659.4,3659.3,0.27331]
[1736028800237,0.4172,3659.4,3659.3,0.27331]
[1736028802543,0.6905,3659.4,3659.3,0.27331]
[1736028803141,0.4172,3659.4,3659.3,0.27331]
[1736028808952,0.27332,3659.2,3659.1,3.48113]
[1736028809256,0.27333,3659.1,3659.0,0.27333]
[1736028814059,0.27333,3659.0,3658.9,3.48113]
[1736028815658,0.27333,3659.0,3658.9,0.27333]
[1736028817070,0.27335,3658.9,3658.8,0.27335]
[1736028817266,0.70605,3658.9,3658.8,0.27335]
[1736028818365,0.27335,3658.8,3658.7,0.27335]
[1736028819962,0.4327,3658.9,3658.5,5.15096129]
[1736028820159,2.6184077,3658.9,3658.6,4.29716129]
[1736028820364,0.27336,3658.7,3658.6,4.29716129]
[1736028820762,1.12946,3658.7,3658.6,4.29716129]
[1736028821069,1.12946,3658.7,3658.6,4.57052129]
[1736028821264,0.69086,3658.7,3658.6,4.57052129]
[1736028821471,0.4175,3658.7,3658.6,4.57052129]
[1736028821667,1.34135,3658.8,3658.7,0.27336]
[1736028823367,0.27336,3658.7,3658.6,0.27336]
[1736028825166,1.068,3658.8,3658.5,1.2585]
[1736028825469,0.27338,3658.4,3658.3,4.29716129]
[1736028825666,0.27338,3658.4,3658.3,4.70506129]
[1736028826067,0.71268,3658.4,3658.3,4.70506129]
[1736028827273,0.71268,3658.4,3658.3,0.4079]
[1736028829574,0.71268,3658.4,3658.1,0.8192]
[1736028829575,0.4393,3658.4,3658.1,0.8192]
[1736028829775,0.27339,3658.2,3658.1,0.8192]
[1736028833676,0.27341,3658.0,3657.9,0.69171]
[1736028835278,0.2734,3658.1,3658.0,0.27341]
[1736028836978,0.27341,3658.0,3657.9,0.69171]
[1736028844574,0.98687636,3658.1,3657.9,0.4183]
[1736028844776,0.98687636,3658.1,3658.0,0.27341]
[1736028844777,1.26028636,3658.1,3658.0,0.27341]
[1736028844979,0.98687636,3658.1,3657.9,0.4183]
[1736028845282,0.27341,3658.0,3657.9,0.69171]
[1736028846171,0.98687636,3658.1,3658.0,0.27341]
[1736028846172,1.26028636,3658.1,3658.0,0.27341]
[1736028848371,0.27341,3658.0,3657.9,0.69171]
[1736028850280,0.69291,3658.0,3657.9,0.69171]
[1736028854377,0.69291,3658.0,3657.7,3.2078]
[1736028854378,0.27343,3657.7,3657.6,4.29716129]
[1736028854885,1.26030636,3657.7,3657.6,4.29716129]
[1736028856081,1.26030636,3657.7,3657.4,4.53278277]
[1736028856082,0.27345,3657.5,3657.4,4.53278277]
[1736028856275,1.26032636,3657.5,3657.4,4.53278277]
[1736028856885,1.26032636,3657.5,3657.4,4.80623277]
[1736028857483,1.26032636,3657.5,3657.4,0.50907148]
[1736028861290,1.26032636,3657.5,3657.4,0.23562148]
[1736028863591,0.98687636,3657.5,3657.3,5.87202129]
[1736028863891,0.27345,3657.4,3657.3,5.87202129]
[1736028864687,0.27345,3657.4,3657.3,1.3014]
[1736028866388,0.98687636,3657.5,3657.2,4.29716129]
[1736028866594,1.26033636,3657.3,3657.2,4.29716129]
[1736028867594,1.26033636,3657.3,3657.2,4.57063129]
[1736028868093,1.26033636,3657.3,3657.2,4.29716129]
[1736028869094,0.98687636,3657.3,3657.1,4.29716129]
[1736028869393,0.27347,3657.2,3657.1,4.57063129]
[1736028871593,0.27347,3657.2,3657.1,0.27347]
[1736028871795,0.27347,3657.2,3657.1,4.42834017]
[1736028872007,0.71127,3657.2,3657.1,4.15487017]
[1736028873200,0.27348,3657.1,3657.0,4.29789636]
[1736028873498,1.26035636,3657.1,3657.0,4.29789636]
[1736028874402,1.26035636,3657.1,3656.7,9.0083381]
[1736028874403,0.27349,3656.9,3656.8,4.29789636]
[1736028875897,0.2735,3656.8,3656.6,5.15089636]
[1736028876197,1.26038636,3656.7,3656.6,5.15089636]
[1736028877102,1.26038636,3656.7,3656.6,0.853]
[1736028877802,1.26038636,3656.7,3656.6,1.12651]
[1736028878607,1.26038636,3656.7,3656.6,0.853]
[1736028879693,1.26038636,3656.7,3656.6,1.12651]
[1736028881202,0.27351,3656.6,3656.5,4.29789636]
[1736028882105,0.27351,3656.6,3656.2,0.27354]
[1736028882106,0.27354,3656.3,3656.2,4.29789636]
[1736028882804,0.68874,3656.3,3656.2,4.29789636]
[1736028883798,0.27357,3655.9,3655.8,3.2078]
[1736028884004,1.26044636,3655.9,3655.8,3.2078]
[1736028884605,1.26044636,3655.9,3655.8,3.48137]
[1736028884805,1.26044636,3655.9,3655.8,3.2078]
[1736028886810,0.27357,3655.8,3655.7,1.2927]
[1736028887415,0.27357,3655.8,3655.7,1.56628]
[1736028890911,0.27357,3655.8,3655.7,1.2927]
[1736028891311,0.71817,3655.8,3655.7,1.56628]